Cogmind - Beta 11 @@@ ROGUE MODE // 2022.04.21 @ 14:25:18 Player: DaddyWalrus Result: Self-destructed Performance ------------- Evolutions (3) 1500 Regions Visited (9) 1800 Robots Destroyed (144) 720 Value Destroyed (3709) 3709 Prototype IDs (31) 620 Alien Tech Used (0) 0 Bonus (463) 463 TOTAL SCORE: 8812 Bonus ------- High Alert Combat Kills 79 Follower Combat Kills 84 Aligned with FarCom 300 Cogmind --------- Core Integrity 116/700 Matter 269/300 Energy 290/290 System Corruption 5% Temperature Cool (0) Movement Rolling (230) Ox10 Location -7/Zion Parts ------- > --- POWER (1) -------- Improved Deuterium Engine > --- PROPULSION (5) --- Medium Treads Medium Treads Improved Titanium Leg Makeshift Leg Wheel > --- UTILITY (5) ------ Improved Cooling System Huge Storage Unit Improved Signal Interpreter Advanced Targeting Computer Makeshift Armor Plating > --- WEAPON (2) ------- Pulse Rifle Gauss Rifle > --- INVENTORY (25) --- Makeshift Power Source Improved Cooling System Huge Storage Unit High-capacity Matter Pod (200) Improved Target Analyzer Hardened Heavy Armor Plating Shock Rifle Lightning Gun Heavy Laser AWS/Thermal Firepult Improved Assault Rifle Improved Assault Rifle Flak Gun Improved Grenade Launcher RU-N14's Throwing Claymores RU-N14's Throwing Claymores RU-N14's Throwing Claymores RU-N14's Throwing Claymores Heavy Flail Longsword +1 Self-destruct Interrupter (50) Peak State ------------ > --- POWER ------------ Improved Deuterium Engine > --- PROPULSION ------- Medium Treads Medium Treads Improved Titanium Leg Makeshift Leg Wheel > --- UTILITY ---------- Improved Cooling System Huge Storage Unit Improved Signal Interpreter Advanced Targeting Computer Improved Medium Armor Plating > --- WEAPON ----------- Pulse Rifle Gauss Rifle > --- INVENTORY -------- Improved Cooling System Huge Storage Unit High-capacity Matter Pod Improved Target Analyzer Hardened Heavy Armor Plating Shock Rifle Lightning Gun Heavy Laser AWS/Thermal Improved EM Pulse Cannon Firepult Improved Assault Rifle Improved Assault Rifle Flak Gun Improved Grenade Launcher RU-N14's Throwing Claymores RU-N14's Throwing Claymores RU-N14's Throwing Claymores Heavy Flail Longsword +1 Self-destruct Interrupter [Rating: 55] Favorites ----------- Power Improved Deuterium Engine Engine Improved Deuterium Engine Propulsion Wheel Treads Light Treads Leg Makeshift Leg Wheel Wheel Utility Huge Storage Unit Device Improved Cooling System Storage Huge Storage Unit Processor Improved Signal Interpreter Protection Improved Medium Armor Plating Weapon Improved Assault Rifle Energy Gun Pulse Rifle Ballistic Gun Improved Assault Rifle Launcher Grenade Launcher Impact Weapon Heavy Flail Slashing Weapon Longsword +1 Build | -11 -10 -10 -10 -9 -8 -7 -7 -7 -7 ------- Run | Scr Mat Min Exi Min Mat Fac Low Low Zio Slots Evolved 6 | . . . . . 4 2 . . . Power . | . . . . . . . . . . Propulsion 3 | . . . . . 2 1 . . . Utility 3 | . . . . . 2 1 . . . Weapon . | . . . . . . . . . . Parts Attached 173 | 8 15 12 1 2 46 69 14 1 5 Power 15 | 1 . 2 . 1 5 5 . 1 . Engine 15 | 1 . 2 . 1 5 5 . 1 . Core . | . . . . . . . . . . Reactor . | . . . . . . . . . . Propulsion 63 | 2 5 3 . . 14 31 4 . 4 Treads 25 | 1 2 2 . . 5 11 2 . 2 Leg 2 | . . . . . . . . . 2 Wheel 36 | 1 3 1 . . 9 20 2 . . Hover . | . . . . . . . . . . Flight . | . . . . . . . . . . Utility 37 | 2 4 . 1 1 8 18 2 . 1 Device 12 | 1 1 . . 1 2 7 . . . Storage 10 | 1 3 . 1 . 2 3 . . . Processor 4 | . . . . . 1 2 1 . . Hackware . | . . . . . . . . . . Protection 11 | . . . . . 3 6 1 . 1 Artifact . | . . . . . . . . . . Weapon 58 | 3 6 7 . . 19 15 8 . . Energy Gun 17 | 3 2 1 . . 7 2 2 . . Energy Cannon . | . . . . . . . . . . Ballistic Gun 27 | . 2 4 . . 9 9 3 . . Ballistic Cannon . | . . . . . . . . . . Launcher 7 | . 2 2 . . 1 . 2 . . Special Weapon . | . . . . . . . . . . Impact Weapon 3 | . . . . . . 2 1 . . Slashing Weapon 4 | . . . . . 2 2 . . . Piercing Weapon . | . . . . . . . . . . Special Melee Weapon . | . . . . . . . . . . Unidentified Prototypes . | . . . . . . . . . . Parts Lost 53 | . 1 8 . . 14 19 9 2 . Power 7 | . . 3 . . 1 2 . 1 . Propulsion 28 | . 1 2 . . 6 11 7 1 . Utility 8 | . . . . . 2 4 2 . . Weapon 10 | . . 3 . . 5 2 . . . Highest Loss Streak 12 | . 1 7 . . 12 7 4 2 . To Critical Strikes 1 | . . . . . . . 1 . . Average Slot Usage (%) 91 | . 100 93 85 97 92 97 78 62 95 Engine 7 | . 14 9 . 11 8 7 7 1 7 Treads 13 | . 14 14 14 14 14 16 10 . 11 Leg 1 | . . . . . . . . . 13 Wheel 16 | . 13 13 14 14 20 20 11 7 7 Device 9 | . 14 14 14 14 10 6 14 7 7 Storage 8 | . 14 14 14 14 9 7 7 7 7 Processor 5 | . . . . . . 7 7 15 15 Protection 8 | . . . . . 11 12 7 7 7 Energy Gun 5 | . 20 9 . . 5 1 1 7 7 Ballistic Gun 11 | . 7 13 28 28 10 11 6 7 7 Naked Turns . | . . . . . . . . . . Heaviest Build 215 | 11 26 30 43 46 215 115 110 106 106 Greatest Support 76 | 16 20 20 10 10 30 76 48 10 10 Greatest Overweight (x) 10 | . 2 2 4 4 10 9 10 10 10 Average Overweight (x) 4 | . . 1 3 4 4 3 4 9 10 Largest Inventory Capacity 35 | 8 15 15 20 20 35 25 25 25 25 Average Capacity 23 | 7 11 15 18 20 28 25 25 25 25 Most Carried 25 | 8 15 15 17 20 25 25 25 25 25 Average Carried 21 | 4 10 12 12 19 22 24 24 24 24 Final Capacity 25 | 8 15 15 20 20 25 25 25 25 25 Final Carried 25 | 8 15 9 17 20 25 25 25 24 25 Class Distribution -------------------- 56% | Scavenger-Mutant 31% | Mutant 6% | Hauler-Mutant 5% | Derelict-Mutant Dominant Class ---------------- Mutant | -10/Materials Mutant | -10/Mines Mutant | -10/Exiles Mutant | -9/Mines Scavenger-Mutant | -8/Materials Scavenger-Mutant | -7/Factory Scavenger-Mutant | -7/Lower Caves Mutant | -7/Lower Caves Derelict-Mutant | -7/Zion Resources | -11 -10 -10 -10 -9 -8 -7 -7 -7 -7 ----------- Run | Scr Mat Min Exi Min Mat Fac Low Low Zio Matter Collected 4038 | 280 239 19 300 28 781 1760 361 189 81 Remotely . | . . . . . . . . . . Salvage Created 5517 | 137 539 32 . 36 1479 2871 211 212 . Parts 296 | 6 38 1 . 6 100 130 13 2 . Haulers Intercepted 4 | . 1 . . . 1 2 . . . Recyclers Shooed 10 | . 1 . . . 1 8 . . . Parts Field Recycled . | . . . . . . . . . . Retrieved Matter . | . . . . . . . . . . Parts Self-Destructed 17 | . . . . . . . 11 4 2 Prevented 3 | . . . . . . . 3 . . Kills | -11 -10 -10 -10 -9 -8 -7 -7 -7 -7 ------- Run | Scr Mat Min Exi Min Mat Fac Low Low Zio Combat Hostiles Destroyed 79 | . 14 4 . . 22 34 5 . . Guns 65 | . 8 2 . . 19 34 2 . . AOE 14 | . 6 2 . . 3 . 3 . . Classes Destroyed 22 | 2 6 1 . . 7 2 3 1 . Worker 20 | . . . . . 5 15 . . . Builder 5 | . 1 . . . 2 2 . . . Tunneler 5 | 2 . . . 2 . 1 . . . Hauler 4 | . 1 . . . 1 2 . . . Recycler 17 | 1 1 . . . 3 12 . . . Minesweeper 1 | . . . . . . . 1 . . Mechanic 1 | . . . . . 1 . . . . Operator 3 | . 2 . . . 1 . . . . Watcher 10 | . 2 . . . 5 3 . . . Swarmer 18 | . 6 3 . . 3 3 3 . . Cutter 3 | . . . . . 3 . . . . Grunt 32 | . 8 . . . 7 17 . . . Brawler 1 | . . . . . 1 . . . . Duelist 2 | . . . . . . 2 . . . Sentry 9 | . . . . . 5 4 . . . Hunter 4 | . . . . . 2 2 . . . Programmer 6 | . . . . . . 6 . . . Heavy 1 | . . . . . 1 . . . . Behemoth 1 | . . . . . . . 1 . . Decomposer 3 | . . . . . . . 2 1 . Packrat 1 | . . . . . . . . 1 . Samaritan 3 | . . . . . . . . 3 . Assembled 1 | . . 1 . . . . . . . Mutant 1 | . . . . . . . 1 . . Best Kill Streak 7 | 3 5 3 . 1 6 7 3 . . Combat Bots Only 5 | . 3 3 . . 5 4 3 . . Max Kills in Single Turn 3 | 1 2 2 . 1 3 2 3 1 . Gunslinging . | . . . . . . . . . . Exploded 3 | . 2 2 . . 3 . 3 . . Melee . | . . . . . . . . . . Uniques/NPCs Destroyed . | . . . . . . . . . . Combat | -11 -10 -10 -10 -9 -8 -7 -7 -7 -7 -------- Run | Scr Mat Min Exi Min Mat Fac Low Low Zio Damage Taken 8430 | . 457 639 . . 2012 4218 985 119 . Core 1108 | . 83 60 . . 381 379 183 22 . Absorbed by Shields . | . . . . . . . . . . Redirected to Shielding 86 | . . . . . . 86 . . . Core Remaining (%) 57 | 100 . . . 42 30 . . . . Volleys Fired 407 | 4 57 16 . 4 76 199 33 18 . Largest 2 | 2 2 2 . 2 2 2 2 2 . Hottest 91 | 80 80 70 . 40 88 91 91 91 . Shots Fired 845 | 8 108 29 . 8 192 397 67 35 1 Gun 829 | 8 103 22 . 8 191 397 64 35 1 Cannon . | . . . . . . . . . . Launcher 16 | . 5 7 . . 1 . 3 . . Special . | . . . . . . . . . . Kinetic 544 | . 43 9 . 8 95 333 37 18 1 Thermal 281 | 8 60 9 . . 96 64 27 17 . Explosive 16 | . 5 7 . . 1 . 3 . . Electromagnetic 4 | . . 4 . . . . . . . Robot Hit Streak 31 | 3 15 5 . 3 14 29 29 31 . Robot Miss Streak 10 | 1 7 5 . 1 6 10 2 2 1 Penetration Max 1 | . . . . . . 1 . . . Secondary Targets 6 | . . . . . 2 4 . . . Max Gunslinging Chain 1 | . . . . . 1 1 . . . Autonomous 60 | . . . . . 43 . 17 . . Shots Hit Robots 619 | 5 70 12 . 5 142 305 52 28 . Core Hits 321 | 4 40 8 . 4 68 165 19 13 . Critical Kills 1 | . . . . . . . . 1 . Critical Parts Destroyed 2 | . . . . . . 1 1 . . Critical Strikes 8 | . . . . . 2 3 2 1 . Burn 5 | . . . . . 2 2 1 . . Destroy 3 | . . . . . . 1 1 1 . Melee Attacks 32 | . . . . . 13 18 1 . . Impact 14 | . . . . . . 13 1 . . Slashing 18 | . . . . . 13 5 . . . Piercing . | . . . . . . . . . . Sneak Attacks 3 | . . . . . 2 1 . . . Combat Hostiles . | . . . . . . . . . . Follow-up Attacks . | . . . . . . . . . . Damage Inflicted 11958 | 66 1215 284 . 36 2772 5726 1351 508 . Guns 10250 | 66 686 120 . 36 2307 5305 1222 508 . Cannons . | . . . . . . . . . . Explosions 1289 | . 529 164 . . 136 331 129 . . Melee 410 | . . . . . 324 86 . . . Ramming 9 | . . . . . 5 4 . . . Kinetic 6430 | . 253 42 . 36 832 4455 542 270 . Thermal 3862 | 66 486 67 . . 1475 850 680 238 . Explosive 1236 | . 476 164 . . 136 331 129 . . Electromagnetic 11 | . . 11 . . . . . . . Impact 86 | . . . . . . 86 . . . Slashing 324 | . . . . . 324 . . . . Piercing . | . . . . . . . . . . Highest Corruption 5 | . . . . . 1 5 5 5 5 Average Corruption 3 | . . . . . 1 2 5 5 5 Corruption Purged 4 | . . . . . . 4 . . . Corruption Blocked . | . . . . . . . . . . Effects 103 | . . . . . 6 32 24 19 22 Message Errors 17 | . . . . . 1 4 5 1 6 Matter Fused 24 | . . . . . . 7 5 6 6 Heat Flow Errors 17 | . . . . . 2 7 3 2 3 Energy Discharges 11 | . . . . . 1 2 2 2 4 Data Loss (minor) 17 | . . . . . 1 5 5 4 2 Data Loss (major) 2 | . . . . . . 1 . 1 . Misfires 9 | . . . . . 1 3 2 2 1 Alerts 3 | . . . . . . 2 1 . . Weapon Failures 3 | . . . . . . 1 1 1 . Overload Shots . | . . . . . . . . . . Overflow Damage 98 | . . 2 . . 46 50 . . . Projectiles . | . . . . . . . . . . Explosions 6 | . . 2 . . . 4 . . . Melee 92 | . . . . . 46 46 . . . Knockbacks 1 | . . . . . . 1 . . . Impact 1 | . . . . . . 1 . . . Kinetic . | . . . . . . . . . . Secondary . | . . . . . . . . . . Self-Inflicted Damage 163 | . 21 96 . . . . 46 . . Shots 5 | . 1 3 . . . . 1 . . Rammed 2 | . . . . . 1 1 . . . Targets Rammed 2 | . . . . . 1 1 . . . Kicked . | . . . . . . . . . . Crushed . | . . . . . . . . . . Highest Temperature 315 | 36 120 40 . . 183 315 237 119 211 Average Temperature 64 | 16 52 16 . . 32 89 93 60 89 Received Heat Transfer 2370 | . 210 . . . 693 1371 60 36 . Effects 3 | . . . . . . 3 . . . Energy Bleed 1 | . . . . . . 1 . . . Interference 2 | . . . . . . 2 . . . Siege Activations . | . . . . . . . . . . Robots Corrupted . | . . . . . . . . . . Combat Hostiles . | . . . . . . . . . . Parts Fried 2 | . . . . . . 2 . . . Impact Corruptions 3 | . . . . . . 3 . . . Robots Melted . | . . . . . . . . . . Combat Hostiles . | . . . . . . . . . . Parts Melted 8 | . . . . . 1 5 1 1 . Heat Transferred 7522 | 150 1025 150 . . 2571 2072 1036 518 . Parts Sabotaged . | . . . . . . . . . . Parts Stolen 2 | . . . . . . . . 2 . Parts Stripped . | . . . . . . . . . . Power Chain Reactions . | . . . . . . . . . . Missiles Intercepted . | . . . . . . . . . . Alert | -11 -10 -10 -10 -9 -8 -7 -7 -7 -7 ------- Run | Scr Mat Min Exi Min Mat Fac Low Low Zio Peak Influence 639 | 15 558 327 . 10 265 639 . . . Initial 159 | . 9 159 . . 3 81 . . . Average 224 | 4 331 260 . 8 96 284 . . . Maximum Alert Level 2 | . 2 1 . . 1 2 . . . Low Security (%) 54 | 100 9 25 . 100 97 40 . . . Level 1 30 | . 62 74 . . 2 37 . . . Level 2 14 | . 28 . . . . 21 . . . Level 3 . | . . . . . . . . . . Level 4 . | . . . . . . . . . . Level 5 . | . . . . . . . . . . High Security . | . . . . . . . . . . Max Security . | . . . . . . . . . . Squads Dispatched 12 | . 3 . . . 3 6 . . . Investigation 1 | . 1 . . . . . . . . Extermination 4 | . . . . . . 4 . . . Reinforcement 7 | . 2 . . . 3 2 . . . Assault . | . . . . . . . . . . Garrison . | . . . . . . . . . . Intercept . | . . . . . . . . . . Searches Triggered . | . . . . . . . . . . Construction Impeded . | . . . . . . . . . . Haulers Reinforced 2 | . . . . . . 2 . . . Active Scanning Responses . | . . . . . . . . . . Cargo Convoy Interrupts . | . . . . . . . . . . Stealth | -11 -10 -10 -10 -9 -8 -7 -7 -7 -7 --------- Run | Scr Mat Min Exi Min Mat Fac Low Low Zio Distress Signals 5 | . . . . . 4 1 . . . Communications Jammed . | . . . . . . . . . . Distress Signals . | . . . . . . . . . . Times Spotted 126 | . 21 6 . . 39 47 5 4 4 Peak Tracking Total 5 | . 4 3 . . 5 5 3 3 2 Tactical Retreats 3 | . . . . . 2 1 . . . Traps | -11 -10 -10 -10 -9 -8 -7 -7 -7 -7 ------- Run | Scr Mat Min Exi Min Mat Fac Low Low Zio Traps Triggered 7 | . 2 . . . . 5 . . . Indirectly . | . . . . . . . . . . Trap Hack Attempts . | . . . . . . . . . . Triggered . | . . . . . . . . . . Disarmed . | . . . . . . . . . . Reprogrammed . | . . . . . . . . . . Reused . | . . . . . . . . . . Traps Extracted . | . . . . . . . . . . Installed . | . . . . . . . . . . Triggered 2 | . . . . . . . 2 . . Most Traps Carried 1 | . . . . . . . 1 1 . Machines | -11 -10 -10 -10 -9 -8 -7 -7 -7 -7 ---------- Run | Scr Mat Min Exi Min Mat Fac Low Low Zio Machines Disabled 13 | . 4 . . . 1 6 2 . . Max in Single Turn 4 | . 2 . . . 1 4 1 . . Garrison Access 1 | . . . . . . 1 . . . Machines Sabotaged . | . . . . . . . . . . Garrisons Compromised . | . . . . . . . . . . Overloaded Fab Kills . | . . . . . . . . . . Hacking | -11 -10 -10 -10 -9 -8 -7 -7 -7 -7 --------- Run | Scr Mat Min Exi Min Mat Fac Low Low Zio Machines Accessed 17 | . 3 . 2 . 5 7 . . . Terminals 10 | . 3 . . . 5 2 . . . Fabricators . | . . . . . . . . . . Repair Stations 1 | . . . . . . 1 . . . Recycling Units 3 | . . . . . . 3 . . . Scanalyzers . | . . . . . . . . . . Garrison Access 1 | . . . . . . 1 . . . Total Hacks 37 | . 8 . 5 . 15 9 . . . Successful 17 | . 2 . 5 . 5 5 . . . Failed 20 | . 6 . . . 10 4 . . . Catastrophic 1 | . . . . . . 1 . . . Database Lockouts . | . . . . . . . . . . Manual 26 | . 8 . 1 . 15 2 . . . Terminals 26 | . 8 . . . 15 3 . . . Fabricators . | . . . . . . . . . . Repair Stations 2 | . . . . . . 2 . . . Recycling Units 3 | . . . . . . 3 . . . Scanalyzers . | . . . . . . . . . . Garrison Access 1 | . . . . . . 1 . . . Terminal Hacks 11 | . 1 . 5 . 4 1 . . . Record 4 | . . . 4 . . . . . . Prototype ID Bank 4 | . 1 . . . 2 1 . . . Unreport Threat 1 | . . . . . 1 . . . . Locate Traps 1 | . . . . . 1 . . . . EX-Prototype ID Bank 1 | . . . 1 . . . . . . Fabricator Hacks . | . . . . . . . . . . Repair Station Hacks . | . . . . . . . . . . Recycling Unit Hacks 3 | . . . . . . 3 . . . Report Inventory 3 | . . . . . . 3 . . . Scanalyzer . | . . . . . . . . . . Garrison Access Hacks 1 | . . . . . . 1 . . . Seal Access 1 | . . . . . . 1 . . . Unauthorized Hacks 2 | . 1 . . . 1 . . . . Terminals 2 | . 1 . . . 1 . . . . Operators 2 | . 1 . . . 1 . . . . Fabricators . | . . . . . . . . . . Repair Stations . | . . . . . . . . . . Recycling Units . | . . . . . . . . . . Scanalyzers . | . . . . . . . . . . Garrison Access . | . . . . . . . . . . Data Cores Recovered . | . . . . . . . . . . Used . | . . . . . . . . . . Hacking Detections 9 | . 2 . . . 3 4 . . . Full Trace Events . | . . . . . . . . . . Feedback Events . | . . . . . . . . . . Feedback Blocked . | . . . . . . . . . . Robot Schematics Acquired . | . . . . . . . . . . Robots Built . | . . . . . . . . . . Authchips . | . . . . . . . . . . Time . | . . . . . . . . . . Total Robot Build Rating . | . . . . . . . . . . Part Schematics Acquired . | . . . . . . . . . . Parts Built . | . . . . . . . . . . Authchips . | . . . . . . . . . . Time . | . . . . . . . . . . Total Part Build Rating . | . . . . . . . . . . Parts Repaired . | . . . . . . . . . . Time . | . . . . . . . . . . Parts Recycled . | . . . . . . . . . . Recycled Matter . | . . . . . . . . . . Retrieved Matter . | . . . . . . . . . . Retrieved Components . | . . . . . . . . . . Parts Scanalyzed . | . . . . . . . . . . Part Schematics Acquired . | . . . . . . . . . . Parts Damaged . | . . . . . . . . . . Bothacking | -11 -10 -10 -10 -9 -8 -7 -7 -7 -7 ------------ Run | Scr Mat Min Exi Min Mat Fac Low Low Zio Used RIF Installer . | . . . . . . . . . . Robots Hacked . | . . . . . . . . . . Non-combat . | . . . . . . . . . . Combat . | . . . . . . . . . . Robot Hacks Applied . | . . . . . . . . . . Relay Couplers Released 3 | . . . . . . 3 . . . Programmers 3 | . . . . . . 3 . . . Fabnet Peak Effective % . | . . . . . . . . . . Robots Rewired 3 | . . . . . . . 3 . . Allies Hacked . | . . . . . . . . . . Hacks Repelled . | . . . . . . . . . . Allies | -11 -10 -10 -10 -9 -8 -7 -7 -7 -7 -------- Run | Scr Mat Min Exi Min Mat Fac Low Low Zio Total Allies 3 | . . . . . . . 3 . . Largest Group 3 | . . . . . . . 3 3 3 Highest-Rated Group 93 | . . . . . . . 93 93 93 Highest-Rated Ally 31 | . . . . . . . 31 31 31 Total Orders . | . . . . . . . . . . Ally Attacks 44 | . . . . . . . . 40 4 Total Damage 549 | . . . . . . . . 485 64 Kills 3 | . . . . . . . . 3 . Allies Corrupted . | . . . . . . . . . . Allies Melted . | . . . . . . . . . . Intel | -11 -10 -10 -10 -9 -8 -7 -7 -7 -7 ------- Run | Scr Mat Min Exi Min Mat Fac Low Low Zio Robot Analysis Total . | . . . . . . . . . . Derelict Logs Recovered 5 | . . . . 2 . . . . 3 Drone Launches . | . . . . . . . . . . Drone Recoveries . | . . . . . . . . . . Exploration | -11 -10 -10 -10 -9 -8 -7 -7 -7 -7 ------------- Run | Scr Mat Min Exi Min Mat Fac Low Low Zio Turns Passed 9107 | 85 820 171 732 125 1817 3088 819 605 845 Spaces Moved 4748 | 51 559 102 548 75 834 1548 419 252 360 Core 1 | 1 . . . . . . . . . Treads 12 | . 6 1 . . . 5 . . . Legs . | . . . . . . . . . . Wheels 4735 | 50 553 101 548 75 834 1543 419 252 360 Hover . | . . . . . . . . . . Flight . | . . . . . . . . . . Fastest Speed 50 | 50 100 110 110 140 135 105 116 215 230 Average Speed 147 | 99 105 111 132 140 157 131 162 217 230 Slowest Speed 400 | 100 240 240 140 140 230 400 230 230 230 Overloaded Moves . | . . . . . . . . . . Propulsion Burnouts . | . . . . . . . . . . Robots Hopped . | . . . . . . . . . . Cave-ins Triggered . | . . . . . . . . . . Exploration Rate (%) 47 | 4 82 18 70 22 70 44 56 49 55 Regions Visited 9 Branch Regions 6 Pre-discovered Areas 3 | . . . 1 1 . . . . 1 Known Exits Taken 3 | . . . . . . 1 1 1 . Unknown Exits Taken 6 | 1 1 1 1 1 1 . . . . Scrap Searched 4 | . . . . . . . . . 4 Spaces Dug 33 | . 8 . . . 8 17 . . . Terrain Destroyed 229 | . 82 59 . . 24 41 23 . . Melee 25 | . . . . . 8 17 . . . Projectile 9 | . . . . . 8 1 . . . AOE 195 | . 82 59 . . 8 23 23 . . Terrain Rammed . | . . . . . . . . . . Walls Destroyed . | . . . . . . . . . . Machines Disabled . | . . . . . . . . . . Actions | -11 -10 -10 -10 -9 -8 -7 -7 -7 -7 --------- Run | Scr Mat Min Exi Min Mat Fac Low Low Zio Total 6089 | 74 694 129 554 89 1192 2192 509 277 379 Wait 460 | . 37 . . 4 148 262 9 . . Move 4739 | 50 558 101 547 74 833 1547 418 251 360 Hop . | . . . . . . . . . . Pick Up 129 | 10 15 . 5 3 38 41 5 4 8 Fast Attach 31 | 7 . . . 2 7 8 4 . 3 Attach 65 | . 2 7 . . 24 23 7 1 1 Detach 17 | . . . . 1 9 4 3 . . Swap 77 | 1 13 5 1 . 15 38 3 . 1 Drop 99 | 2 12 . 1 1 28 43 3 3 6 Fire 407 | 4 57 16 . 4 76 199 33 18 . Melee 32 | . . . . . 13 18 1 . . Ram . | . . . . . . . . . . Kick . | . . . . . . . . . . Crush 2 | . . . . . 1 1 . . . Escape Stasis 8 | . . . . . . 8 . . . Rewire 23 | . . . . . . . 23 . . Trap . | . . . . . . . . . . Miscellaneous . | . . . . . . . . . . Route ------- -11/Scrapyard -10/Materials (discovered 4 exits: [*Mat x2] / [*Min x2]) -10/Mines (discovered 2 exits: [*Mat] / *Exi) -10/Exiles (discovered 2 exits: [*Min x2]) -9/Mines -8/Materials (discovered 2 exits: *Fac x2) -7/Factory (discovered 2 exits: *Fac / *Low) -7/Lower Caves -7/Lower Caves -7/Zion History --------- Turn | Location | Event 19 | -11/Scrapyard | Discovered new exit (range 16) 86 | -11/Scrapyard | Entered Materials 209 | -10/Materials | Discovered new exit (range 12) 289 | -10/Materials | Discovered new exit (range 14) 302 | -10/Materials | Build established: Mutant 769 | -10/Materials | Discovered new exit (range 11) 887 | -10/Materials | Discovered new exit (range 15) 906 | -10/Materials | Entered Mines 919 | -10/Mines | Discovered new exit (range 4) 984 | -10/Mines | Assembled infested the area 1011 | -10/Mines | Core integrity fell below 50% 1066 | -10/Mines | Lost 7 parts (2p2n3w) 1071 | -10/Mines | Deemed a non-threat by the Exiles lab entrance 1071 | -10/Mines | Discovered new exit (range 6) 1077 | -10/Mines | Entered Exiles 1105 | -10/Exiles | Met 8R-AWN 1120 | -10/Exiles | Met EX-HEX 1176 | -10/Exiles | Met EX-DEC 1196 | -10/Exiles | Learned location of Zion (-7) 1255 | -10/Exiles | Discovered new exit (range 10) 1399 | -10/Exiles | Met EX-BIN 1419 | -10/Exiles | Aligned with FarCom system 1420 | -10/Exiles | Given EX-Vault access code 1452 | -10/Exiles | Opened EX-Vault 1465 | -10/Exiles | Found Longsword +1 1467 | -10/Exiles | Found AWS/Thermal 1471 | -10/Exiles | Found Firepult 1504 | -10/Exiles | Warned to stay clear of 0b10 Research branches 1600 | -10/Exiles | Discovered new exit (range 15) 1809 | -10/Exiles | Stole three prototypes: AWS/Thermal, Firepult, Longsword +1 1809 | -10/Exiles | Entered Mines 1855 | -9/Mines | Met a Derelict bent on vengeance 1880 | -9/Mines | Learned location of Storage (-9) 1891 | -9/Mines | Learned Materials stockpile data 1916 | -9/Mines | Discovered new exit (range 10) 1934 | -9/Mines | Entered Materials 1934 | -8/Materials | Evolved 4 slots: Propulsion x2, Utility x2 2225 | -8/Materials | Build established: Hauler-Mutant 2433 | -8/Materials | Lost 12 parts (1p5n1u5w) 2789 | -8/Materials | Build established: Scavenger-Mutant 3093 | -8/Materials | Discovered new exit (range 3) 3376 | -8/Materials | Discovered new exit (range 3) 3391 | -8/Materials | Core integrity fell below 50% 3751 | -8/Materials | Entered Factory 3751 | -7/Factory | Evolved 2 slots: Propulsion x1, Utility x1 3753 | -7/Factory | FarCom data flow suspended 4789 | -7/Factory | Lost 7 parts (1p4n1u1w) 6187 | -7/Factory | Core integrity fell below 50% 6525 | -7/Factory | Discovered new exit (range 14) 6546 | -7/Factory | Identified exit to Factory 6764 | -7/Factory | Discovered new exit (range 11) 6776 | -7/Factory | Identified exit to Lower Caves 6839 | -7/Factory | Entered Lower Caves 6839 | -7/Lower Caves | Spotted B-75 Beast 6867 | -7/Lower Caves | Destroyed B-75 Beast 6897 | -7/Lower Caves | Lost 4 parts (3n1u) 7546 | -7/Lower Caves | Discovered new exit (range 9) 7553 | -7/Lower Caves | Identified exit to Lower Caves 7570 | -7/Lower Caves | Attacked by a delusional Derelict stockpiling Unaware 7598 | -7/Lower Caves | Core integrity fell below 20% 7619 | -7/Lower Caves | Lost 4 parts (3n1u) 7658 | -7/Lower Caves | Entered another Lower Caves area 7658 | -7/Lower Caves | Accompanied by 3 allies 7658 | -7/Lower Caves | Spotted HL-BTF(f) 7658 | -7/Lower Caves | Spotted AS-MCS(f) 7659 | -7/Lower Caves | Encountered a Master Thief 7659 | -7/Lower Caves | Encountered a Master Thief 7662 | -7/Lower Caves | Spotted RX-M0P(f) 7663 | -7/Lower Caves | Encountered a Master Thief 7663 | -7/Lower Caves | Longsword +1 stolen by Master Thief 7664 | -7/Lower Caves | Allies destroyed AS-MCS(f) 7667 | -7/Lower Caves | Dirty Bomb Trap stolen by Master Thief 7680 | -7/Lower Caves | Allies destroyed RX-M0P(f) 7945 | -7/Lower Caves | Attracted the attention of an 0b10 checkpoint 7968 | -7/Lower Caves | Build established: Mutant 8242 | -7/Lower Caves | Discovered new exit (range 11) 8261 | -7/Lower Caves | Identified exit to Zion 8263 | -7/Lower Caves | Entered Zion 8263 | -7/Zion | Accompanied by 3 allies 8324 | -7/Zion | Learned location of 1 exit from Factory 8824 | -7/Zion | Found Prototype Special Weapon 8827 | -7/Zion | Found Prototype Special Weapon 8830 | -7/Zion | Found Prototype Special Weapon 8834 | -7/Zion | Found Prototype Special Weapon 8875 | -7/Zion | Build established: Derelict-Mutant 8973 | -7/Zion | Learned Factory terminal intel 9105 | -7/Zion | Attacked by Zionites 9108 | -7/Zion | Self-destructed Last Messages --------------- 01101101 01110000 00101110 Data stored: Factory terminal intel. H0-Y3C(c): MAIN.C is working hard on something called the "Q-Series," a direct result of Researcher analysis. Whatever you do, don't let a Researcher scan you. I don't think future raids stand much of a chance going up against an enemy designed specifically to counter our strengths and exploit our weaknesses! 09002_ Dropped Imp. Medium Armor Plating. 09013_ System corrupted: Matter fused (-10). 09038_ Dropped Imp. EM Pulse Cannon. 09041_ Acquired Mak. Power Source. 09065_ CK-NJN(z) toys with the Twisted Machinery. 09085_ Acquired derelict log, extracted data. 09105_ System corrupted: FCS attempts to trigger Gauss Rifle. 09105_ System corrupted: Gauss Rifle misfires. 09105_ PUBLIC SERVICE ANNOUNCEMENT: Zion is under attack! Defend our home! 09105_ 2N-T84(z) suffers critical hit (Burn). 09106_ XW-28V(z) emerges from the Twisted Machinery. 09107_ 2N-T84(z) heat short circuits Mak. Terrain Scanner. Map ----- +----------------------------------------------------+ | ?????????????"" """ " """"""""""""#"#" | | ?????????????"" """" ""##"" | | ?????????????"" "" ""#"##" | | ?????????????#" """"""""" """""" | | ??????????????"" """""#"" """" | | ??????????????""" # ""#"""" "" | | ????????????" "" "" """""" | | ???????????" "" # | | ??????????? """ | | ??????????? """""" | | ??????????? """""""" " | | ??????????? | | ???????????" | | ???????????" """ | | ???????????? "" """"" """"""#""" | | ?????????????"" """"""""" " """"""" | | ?????????????"" """"""""" """" ""###""" | | ?????????????" """" " ""#"" ""##??"#" | | ?????????????" "" ""#"" """""#?????? | | ?????????????" g """""""""#"""?????? | | ?????????????"" """ ""#"""?##?????????? | | ??????????????"""""" "" % """"""????????????? | | ??????????? """"""" """"##???????????? | | ?????????? """???????????? | | ??????????? "##???????????? | | ??????????? """"""" g@g ""#???????????? | | ???????????????? """" ""##???????????? | | ??????????????????"""" """""#????????????? | | ??????????????????###" """"##????????????? | | ????????????????????#" """##?????????????? | | ????????????????????#""" """???????????????? | | ????????????????????"""" """???????????????? | | ???????????????????###"" """???????????????? | | ?????????????????????""" """???????????????? | | ??????????????????????"zz""" ""????????????????? | | ??????????????????????? """ ""????????????????? | | ?????????????????????? ""????????????????? | | ??????????????????????? ??? "?????????????????? | | ?????????????????????? ???? "?????????????????? | | ??????????????????????? ???? ???????????????????? | | ??????????????????????? ????????????????????????? | | ?????????????????????????????????????????????????? | | ?????????????????????????????????????????????????? | | ?????????????????????????????????????????????????? | | ?????????????????????????????????????????????????? | | ?????????????????????????????????????????????????? | | ?????????????????????????????????????????????????? | | ????????????????????????????????????????????????? | | ???????????????????????????????????????????????? | | ???????????????????????????????????????????????? | +----------------------------------------------------+ Best States ------------- Heat Dissipation 61 Energy Generation 16 Energy Capacity 290 Matter Stores 300 Matter Capacity 300 Sight Range 18 Robot Scan Range 15 Terrain Scan Range 16 Terrain Scan Density 10 Armor Coverage 750 Resistance: KI 20 Resistance: TH 10 Utility Shielding 66 Evasion (%) 40 Targeting Accuracy 8 Recoil Reduction 5 Item Schematics ----------------- None Robot Schematics ------------------ None Fabricated ------------ Nothing Alien Tech Used ----------------- None Achievements -------------- None Challenges ------------ None Game ------ Seed ForceDisruptionMultirail Manual? 0 Play Time 02:05:44 Cumulative 231.5 hours Start 2022.04.18 @ 20:02:12 End 2022.04.21 @ 14:25:18 Sessions 4 Manual Loads 0 Difficulty Rogue Special Mode None Game No. 87 Rogue 87 Adventurer 0 Explorer 0 Win Type - Total 2 Types 1/0/1/0/0/0/0/0/0 Lore% 63 Gallery% 74 Achievement% 56 Wizard Run 0 Options --------- ASCII 1 Keyboard 1 Movement Numpad Keybinds 0 Fullscreen 1 Font 36/Smallcaps Map View 76x50 Tactical HUD 1 Map Filters NONE Filters NONE Steam 1 RUN: fde3a3c0-84a2-4cd1-ad58-9660f07be6cf